bitfinex-derivatives/quotes_ETHF0:USTF0_20260117
["timestamp","ask_amount","ask_price","bid_price","bid_amount"]
[1768637653447,0.14296399,3295.9,3294.6,0.98281096]
[1768637653653,0.90759165,3295.8,3294.3,0.14379385]
[1768637653844,0.14296399,3295.9,3294.3,0.14379385]
[1768637654045,0.90759197,3295.8,3294.3,0.14379385]
[1768637654344,0.14296399,3295.9,3294.3,0.14379385]
[1768637655044,1.05033529,3295.8,3294.3,0.14379385]
[1768637655244,0.14296399,3295.8,3294.3,0.14379385]
[1768637657353,0.14296399,3295.8,3294.6,0.98317413]
[1768637658253,0.14296399,3295.8,3294.6,1.03917413]
[1768637661548,0.98317413,3296.0,3294.2,0.78378796]
[1768637661549,0.98317413,3295.4,3294.2,0.78378796]
[1768637661750,0.13036512,3295.5,3294.2,0.78378796]
[1768637662151,0.13036512,3295.5,3294.3,0.98317413]
[1768637665447,0.13036512,3295.5,3294.2,0.78378796]
[1768637665649,0.13036512,3295.5,3294.4,0.98317413]
[1768637667459,0.13036512,3295.5,3294.2,1.76696209]
[1768637667654,1.11353925,3295.5,3294.2,1.76696209]
[1768637670660,1.11353925,3295.5,3294.2,0.78378796]
[1768637670862,1.11353925,3295.5,3294.2,1.76696209]
[1768637671356,0.13286047,3295.4,3294.2,0.78378796]
[1768637671556,1.701,3295.8,3293.9,0.98317413]
[1768637671557,1.1160346,3295.3,3293.9,0.98317413]
[1768637672262,0.13286047,3295.3,3294.1,0.98317413]
[1768637672456,0.13286047,3295.3,3293.8,0.14379385]
[1768637672652,0.13286047,3295.3,3294.0,0.98317413]
[1768637677565,0.13286047,3295.3,3294.1,0.98317413]
[1768637679370,0.98317413,3295.5,3294.1,1.12763442]
[1768637679868,0.98317413,3295.5,3294.1,0.14446029]
[1768637680068,0.98317413,3295.5,3294.1,1.12763442]
[1768637681270,0.91157645,3295.4,3294.1,1.12763442]
[1768637681471,0.98317413,3295.5,3294.1,1.12763442]
[1768637681671,0.91158748,3295.4,3294.1,1.12763442]
[1768637681969,0.98317413,3295.5,3294.1,1.12763442]
[1768637682165,0.91158747,3295.4,3294.1,1.12763442]
[1768637682472,0.98317413,3295.5,3294.1,1.12763442]
[1768637682771,0.91187986,3295.4,3294.1,1.12763442]
[1768637683069,0.98317413,3295.5,3294.1,1.12763442]
[1768637683269,0.91187985,3295.4,3294.1,1.12763442]
[1768637683470,0.98317413,3295.5,3294.1,1.12763442]
[1768637683769,0.91195516,3295.4,3294.1,1.12763442]
[1768637683960,0.98317413,3295.5,3294.1,1.12763442]
[1768637684157,0.91195517,3295.4,3294.1,1.12763442]
[1768637684370,0.98317413,3295.5,3294.1,1.12763442]
[1768637684569,0.91204285,3295.4,3294.1,1.12763442]
[1768637684771,0.98317413,3295.5,3294.1,1.12763442]
[1768637684970,0.91204285,3295.4,3294.1,1.12763442]
[1768637685169,0.98317413,3295.5,3294.1,1.12763442]
[1768637685470,0.91212549,3295.4,3294.1,1.12763442]
[1768637685670,0.98317413,3295.5,3294.1,1.12763442]
[1768637685872,0.91212501,3295.4,3294.1,1.12763442]
[1768637686071,0.98317413,3295.5,3294.1,1.12763442]
[1768637686262,0.91212487,3295.4,3294.1,1.12763442]
[1768637686463,0.98317413,3295.5,3294.1,1.12763442]
[1768637686663,0.91222622,3295.4,3294.1,1.12763442]
[1768637686862,0.98317413,3295.5,3294.1,1.12763442]
[1768637687064,0.91222622,3295.4,3294.1,1.12763442]
[1768637687363,0.98317413,3295.5,3294.1,1.12763442]
[1768637687564,0.91234874,3295.4,3294.1,1.12763442]
[1768637687767,0.98317413,3295.5,3294.1,1.12763442]
[1768637687972,0.91234874,3295.4,3294.1,1.12763442]
[1768637688172,0.98317413,3295.5,3294.1,1.12763442]
[1768637688372,0.91249996,3295.4,3294.1,1.12763442]
[1768637688573,0.91249996,3295.3,3294.1,1.12763442]
[1768637688775,0.98317413,3295.5,3294.1,1.12763442]
[1768637688964,0.91249996,3295.4,3294.1,1.12763442]
[1768637689274,0.91249996,3295.3,3294.1,1.12763442]
[1768637689475,0.98317413,3295.5,3294.1,1.12763442]
[1768637689773,0.91269049,3295.4,3294.1,1.12763442]
[1768637689973,0.91269049,3295.3,3294.1,1.12763442]
[1768637690270,0.98317413,3295.5,3294.1,1.12763442]
[1768637690467,0.91294753,3295.4,3294.1,1.12763442]
[1768637690767,0.91294753,3295.3,3294.3,0.98317413]
[1768637691071,4.02017413,3295.7,3294.3,0.98317413]
[1768637691374,1.18266481,3295.6,3294.3,0.98317413]
[1768637691573,1.18266481,3295.5,3294.3,0.98317413]
[1768637691873,0.91294691,3295.4,3294.3,0.98317413]
[1768637692063,0.91294691,3295.3,3294.3,0.98317413]
[1768637692266,0.91294691,3295.2,3294.3,0.98317413]
[1768637692571,4.02017413,3295.7,3294.3,0.98317413]
[1768637692776,1.18316563,3295.6,3294.3,0.98317413]
[1768637692977,1.18316563,3295.5,3294.3,0.98317413]
[1768637693176,0.91330984,3295.4,3294.3,0.98317413]
[1768637693376,0.91330984,3295.3,3294.3,0.98317413]
[1768637693574,0.91330984,3295.2,3294.3,0.98317413]
[1768637693777,3.037,3295.6,3294.3,0.98317413]
[1768637693973,1.18319791,3295.5,3294.1,0.14446029]
[1768637694274,0.91333474,3295.4,3294.2,0.98317413]
[1768637694475,0.91333474,3295.3,3294.2,0.98317413]
[1768637694774,0.91333474,3295.2,3294.2,0.98317413]
[1768637694970,3.037,3295.6,3294.2,0.98317413]
[1768637695172,1.18323603,3295.5,3294.2,0.98317413]
[1768637695470,0.91336416,3295.4,3294.2,0.98317413]
[1768637695672,0.91336416,3295.3,3294.2,0.98317413]
[1768637695868,0.91336416,3295.2,3294.2,0.98317413]
[1768637696175,3.037,3295.6,3294.2,0.98317413]
[1768637696477,1.18334215,3295.5,3294.2,0.98317413]
[1768637696775,0.91344608,3295.4,3294.2,0.98317413]
[1768637696975,0.91344608,3295.3,3294.2,0.98317413]
[1768637697171,0.91344608,3295.2,3294.2,0.98317413]
[1768637697377,1.701,3295.4,3294.2,1.12500225]
[1768637697570,0.91350939,3295.3,3294.2,1.12500225]
[1768637697767,0.91350939,3295.2,3294.2,1.12500225]
[1768637697967,1.701,3295.4,3294.2,1.12500225]
[1768637698179,0.91350938,3295.3,3294.2,1.12500225]
[1768637698480,0.91350938,3295.2,3294.2,1.12500225]
[1768637698776,1.701,3295.4,3294.2,1.12500225]
[1768637698979,0.91352684,3295.3,3294.2,1.12500225]
[1768637699174,0.91352684,3295.2,3294.2,1.12500225]
[1768637699367,1.701,3295.4,3294.2,1.12500225]
[1768637699662,0.91354716,3295.3,3294.2,1.12500225]
[1768637699862,1.701,3295.4,3294.2,1.12500225]
[1768637699863,0.91354716,3295.2,3294.2,1.12500225]
[1768637700077,1.701,3295.4,3294.2,1.12500225]
[1768637700263,0.91354715,3295.3,3294.2,1.12500225]
[1768637700574,0.91354715,3295.2,3294.2,1.12500225]
[1768637700775,1.701,3295.4,3294.2,1.12500225]
[1768637700969,0.9135721,3295.3,3294.2,1.12500225]
[1768637701169,0.9135721,3295.2,3294.2,1.12500225]
[1768637701372,1.701,3295.4,3294.2,1.12500225]
[1768637701676,0.9136158,3295.3,3294.3,0.14182812]
[1768637701877,0.9136158,3295.2,3294.3,0.14182812]
[1768637702176,1.701,3295.5,3294.3,0.14182812]
[1768637702370,0.91361347,3295.4,3294.3,0.14182812]
[1768637702572,0.91361347,3295.3,3294.3,0.14182812]
[1768637702765,0.91361347,3295.2,3294.3,0.14182812]
[1768637702966,1.701,3295.5,3294.3,0.14182812]
[1768637703171,0.91361348,3295.4,3294.3,0.14182812]
[1768637703381,0.91361348,3295.3,3294.3,0.14182812]
[1768637703585,0.91361348,3295.2,3294.4,0.98317413]
[1768637703877,1.701,3295.5,3294.4,1.12500225]
[1768637704077,0.91360644,3295.4,3294.4,1.12500225]
[1768637704267,0.91360644,3295.3,3294.4,1.12500225]
[1768637704467,1.701,3295.5,3294.4,1.12500225]
[1768637704682,0.91353369,3295.4,3294.4,1.12500225]
[1768637704976,0.91353369,3295.3,3294.4,1.12500225]
[1768637705166,1.701,3295.5,3294.4,1.12500225]
[1768637705363,0.91353256,3295.4,3294.4,1.12500225]
[1768637705572,0.91353256,3295.3,3294.4,1.12500225]
[1768637705779,0.14300896,3296.2,3294.5,0.14182812]
[1768637705982,6.90457749,3295.9,3294.6,0.98317413]
[1768637706277,1.18340336,3295.8,3294.6,0.98317413]
[1768637706479,1.18340336,3295.7,3294.6,0.98317413]
[1768637706679,1.18340336,3295.6,3294.6,0.98317413]
[1768637706875,0.91349374,3295.5,3294.6,0.98317413]
[1768637707068,0.91349374,3295.4,3294.6,0.98317413]
[1768637707265,0.91349374,3295.3,3294.6,0.98317413]
[1768637707469,5.72117413,3295.9,3294.6,0.98317413]
[1768637707670,1.18319329,3295.8,3294.6,0.98317413]
[1768637707969,1.18319329,3295.7,3294.6,0.98317413]
[1768637708170,1.18319329,3295.6,3294.6,0.98317413]
[1768637708372,0.91333805,3295.5,3294.6,0.98317413]
[1768637708570,0.91333805,3295.4,3294.6,0.98317413]
[1768637708780,5.72117413,3295.9,3294.6,0.98317413]
[1768637708977,1.18314246,3295.8,3294.6,0.98317413]
[1768637709184,1.18314246,3295.7,3294.6,0.98317413]
[1768637709385,1.18314246,3295.6,3294.6,0.98317413]
[1768637709577,0.91329812,3295.5,3294.6,0.98317413]
[1768637709773,0.91329812,3295.4,3294.6,0.98317413]
[1768637709970,5.72117413,3295.9,3294.6,0.98317413]
[1768637710184,1.18310161,3295.8,3294.6,0.98317413]
[1768637710381,1.18310161,3295.7,3294.6,0.98317413]
[1768637710583,1.18310161,3295.6,3294.6,0.98317413]
[1768637710785,0.91326611,3295.5,3294.6,0.98317413]
[1768637710982,0.91326611,3295.4,3294.6,0.98317413]
[1768637711285,4.738,3295.9,3294.6,0.98317413]
[1768637711473,1.18304119,3295.8,3294.6,0.98317413]
[1768637711674,1.18304119,3295.7,3294.6,0.98317413]
[1768637711870,1.18304119,3295.6,3294.6,0.98317413]
[1768637712070,0.91321885,3295.5,3294.6,0.98317413]
[1768637712373,0.91321885,3295.4,3294.6,0.98317413]
[1768637712574,4.738,3295.9,3294.6,0.98317413]
[1768637712781,1.18301973,3295.8,3294.6,0.98317413]
[1768637712984,1.18301973,3295.7,3294.6,0.98317413]
[1768637713186,1.18301973,3295.6,3294.6,0.98317413]
[1768637713377,0.91320205,3295.5,3294.6,0.98317413]
[1768637713576,0.91320205,3295.4,3294.6,0.98317413]
[1768637713785,4.738,3295.9,3294.6,0.98317413]
[1768637713973,1.18300286,3295.8,3294.6,0.98317413]
[1768637714174,1.18300286,3295.7,3294.6,0.98317413]
[1768637714376,1.18300286,3295.6,3294.6,0.98317413]
[1768637714585,0.91318889,3295.5,3294.6,0.98317413]
[1768637714784,0.91318889,3295.4,3294.6,0.98317413]
[1768637714978,4.738,3295.9,3294.6,0.98317413]
[1768637715179,1.18299037,3295.8,3294.6,0.98317413]
[1768637715372,1.18299037,3295.7,3294.6,0.98317413]
[1768637715577,1.18299037,3295.6,3294.6,0.98317413]
[1768637715778,0.9131791,3295.5,3294.6,0.98317413]
[1768637715978,0.9131791,3295.4,3294.6,0.98317413]
[1768637716273,4.738,3295.9,3294.6,0.98317413]
[1768637716477,1.18297286,3295.8,3294.6,0.98317413]
[1768637716678,1.18297286,3295.7,3294.6,0.98317413]
[1768637716977,1.18297286,3295.6,3294.6,0.98317413]
[1768637717179,0.91316534,3295.5,3294.6,0.98317413]
[1768637717387,0.91316534,3295.4,3294.5,0.14182812]
[1768637717588,4.738,3295.9,3294.5,0.14182812]
[1768637717885,1.18296843,3295.8,3294.5,0.14182812]
[1768637718085,1.18296843,3295.7,3294.5,0.14182812]
[1768637718285,1.18296843,3295.6,3294.5,0.14182812]
[1768637718588,0.91316182,3295.5,3294.5,0.14182812]
[1768637718888,0.91316182,3295.4,3294.5,0.14182812]
[1768637719084,1.701,3295.9,3294.5,0.14182812]
[1768637719288,1.18296539,3295.8,3294.5,0.14182812]
[1768637719487,1.701,3295.9,3294.5,0.14182812]
[1768637719488,1.18296539,3295.7,3294.5,0.14182812]
[1768637719689,1.18296539,3295.6,3294.5,0.14182812]
[1768637719890,0.91315947,3295.5,3294.5,0.14182812]
[1768637720090,0.91315947,3295.4,3294.5,0.14182812]
[1768637720388,0.91315947,3295.3,3294.5,0.14182812]
[1768637720585,1.701,3295.9,3294.5,0.14182812]
[1768637720790,1.18299556,3295.8,3294.5,0.14182812]
[1768637720987,1.18299556,3295.7,3294.5,0.14182812]
[1768637721193,1.701,3295.9,3294.5,0.14182812]
[1768637721194,1.18299556,3295.6,3294.5,0.14182812]
[1768637721384,0.91318178,3295.5,3294.5,0.14182812]
[1768637721583,0.91318178,3295.4,3294.5,0.14182812]
[1768637721787,0.91318178,3295.3,3294.5,0.14182812]
[1768637721992,1.701,3295.9,3294.5,0.14182812]
[1768637722288,1.18300692,3295.8,3294.5,0.14182812]
[1768637722488,1.18300692,3295.7,3294.5,0.14182812]
[1768637722694,1.18300692,3295.6,3294.5,0.14182812]
[1768637722892,0.9131905,3295.5,3294.5,0.14182812]
[1768637723092,0.9131905,3295.4,3294.5,0.14182812]
[1768637723293,0.9131905,3295.3,3294.5,0.14182812]
[1768637723495,1.701,3295.9,3294.5,0.14182812]
[1768637723793,1.18580783,3295.8,3294.5,0.14182812]
[1768637723996,1.18580783,3295.7,3294.5,0.14182812]
[1768637724189,1.18580783,3295.6,3294.5,0.14182812]
[1768637724487,0.91598432,3295.5,3294.5,0.14182812]
[1768637724787,0.91598432,3295.4,3294.5,0.14182812]
[1768637725084,0.91598432,3295.3,3294.5,0.14182812]
[1768637725285,1.701,3295.9,3294.5,0.14182812]
[1768637725486,1.18585106,3295.8,3294.5,0.14182812]
[1768637725687,1.18585106,3295.7,3294.5,0.14182812]
[1768637725987,1.18585106,3295.6,3294.5,0.14182812]
[1768637726187,0.91601765,3295.5,3294.5,0.14182812]
[1768637726393,0.91601765,3295.4,3294.5,0.14182812]
[1768637726595,0.91601765,3295.3,3294.5,0.14182812]
[1768637726892,1.701,3295.9,3294.5,0.14182812]
[1768637727095,1.18587834,3295.8,3294.5,0.14182812]
[1768637727293,1.18587834,3295.7,3294.5,0.14182812]
[1768637727494,1.18587834,3295.6,3294.5,0.14182812]
[1768637727794,0.91603868,3295.5,3294.5,0.14182812]
[1768637727992,0.91603868,3295.4,3294.5,0.14182812]
[1768637728293,0.91603868,3295.3,3294.5,0.14182812]
[1768637728594,1.84060827,3295.9,3294.5,0.14182812]
[1768637728793,1.18594783,3295.8,3294.5,0.14182812]
[1768637728993,1.18594783,3295.7,3294.5,0.14182812]
[1768637729294,1.18594783,3295.6,3294.5,0.14182812]
[1768637729482,0.91609229,3295.5,3294.5,0.14182812]
[1768637729686,0.91609229,3295.4,3294.5,0.14182812]
[1768637729886,0.91609229,3295.3,3294.5,0.14182812]
[1768637730086,1.84060827,3295.9,3294.5,0.14182812]
[1768637730287,1.32560111,3295.8,3294.1,1.1185817]
[1768637730496,1.18599284,3295.7,3294.1,1.1185817]
[1768637730697,1.18599284,3295.6,3294.1,1.1185817]
[1768637730898,0.91612707,3295.5,3294.1,1.1185817]
[1768637731090,0.91612707,3295.4,3294.2,0.13533273]
[1768637731291,0.91612707,3295.3,3294.2,0.13533273]
[1768637731492,0.13960827,3295.8,3294.2,0.13533273]
[1768637731694,1.18605172,3295.7,3294.2,0.13533273]
[1768637732002,1.18605172,3295.6,3294.2,0.13533273]
[1768637732193,0.91617257,3295.5,3294.2,0.13533273]
[1768637732490,0.91617257,3295.4,3294.2,0.13533273]
[1768637732692,0.13960827,3295.8,3294.2,0.13533273]
[1768637732693,0.91617257,3295.3,3294.2,0.13533273]
[1768637732890,0.13960827,3295.8,3294.2,0.13533273]
[1768637733089,1.18611793,3295.7,3294.2,0.13533273]
[1768637733292,1.18611793,3295.6,3294.2,0.13533273]
[1768637733490,1.18611793,3295.5,3294.2,0.13533273]
[1768637733687,0.91622387,3295.4,3294.2,0.13533273]
[1768637733887,0.91622387,3295.3,3294.2,0.13533273]
[1768637734092,0.13960827,3295.8,3294.2,0.13533273]
[1768637734292,1.18621923,3295.7,3294.2,0.13533273]
[1768637734487,1.18621923,3295.6,3294.2,0.13533273]
[1768637734692,1.18621923,3295.5,3294.2,0.13533273]
[1768637734901,0.91630283,3295.4,3294.2,0.13533273]
[1768637735098,0.91630283,3295.3,3294.2,0.13533273]
[1768637735298,0.13960827,3295.8,3294.2,0.13533273]
[1768637735500,1.18626315,3295.7,3294.2,0.13533273]
[1768637735701,1.18626315,3295.6,3294.2,0.13533273]
[1768637735900,1.18626315,3295.5,3294.2,0.13533273]
[1768637736103,0.91633743,3295.4,3294.2,0.13533273]
[1768637736401,0.91633743,3295.3,3294.2,0.13533273]
[1768637736700,0.13960827,3295.8,3294.2,0.13533273]
[1768637736902,1.18626727,3295.7,3294.2,0.13533273]
[1768637737105,1.18626727,3295.6,3294.2,0.13533273]
[1768637737404,1.18626727,3295.5,3294.2,0.13533273]
[1768637737708,0.91633781,3295.4,3294.2,0.13533273]
[1768637737891,0.91633781,3295.3,3294.2,0.13533273]
[1768637738098,0.13960827,3295.8,3294.2,0.13533273]
[1768637738297,1.18626817,3295.7,3294.2,0.13533273]
[1768637738498,1.18626817,3295.6,3294.2,0.13533273]
[1768637738806,0.91633852,3295.5,3294.2,0.13533273]
[1768637738993,0.91633852,3295.4,3294.2,0.13533273]
[1768637739199,0.91633852,3295.3,3294.2,0.13533273]
[1768637739493,0.13960827,3295.8,3294.2,0.13533273]
[1768637739691,1.18624815,3295.7,3294.2,0.13533273]
[1768637739892,1.18624815,3295.6,3294.2,0.13533273]
[1768637740095,0.91632399,3295.5,3294.2,0.13533273]
[1768637740298,0.91632399,3295.4,3294.2,0.13533273]
[1768637740499,0.91632399,3295.3,3294.2,0.13533273]
[1768637740806,0.13960827,3295.8,3294.2,0.13533273]
[1768637741006,1.18624558,3295.7,3294.2,0.13533273]
[1768637741308,1.18624558,3295.6,3294.2,0.13533273]
[1768637741605,1.18624558,3295.5,3294.2,0.13533273]
[1768637741805,0.91632198,3295.4,3294.2,0.13533273]
[1768637742001,0.91632198,3295.3,3294.2,0.13533273]
[1768637742203,0.13960827,3295.8,3294.2,0.13533273]
[1768637742501,1.18626885,3295.7,3294.2,0.13533273]
[1768637742702,1.18626885,3295.6,3294.2,0.13533273]
[1768637742909,1.18626885,3295.5,3294.2,0.13533273]
[1768637743103,0.91633868,3295.4,3294.2,0.13533273]
[1768637743302,0.91633868,3295.3,3294.2,0.13533273]
[1768637743606,0.13960827,3295.8,3294.2,0.13533273]
[1768637743905,1.18625082,3295.7,3294.2,0.13533273]
[1768637744093,1.18625082,3295.6,3294.2,0.13533273]
[1768637744293,0.916326,3295.5,3294.2,0.13533273]
[1768637744497,0.916326,3295.4,3294.2,0.13533273]
[1768637744698,0.916326,3295.3,3294.2,0.13533273]
[1768637745007,0.13960827,3295.8,3294.2,0.13533273]
[1768637745216,1.1862467,3295.7,3294.2,0.13533273]
[1768637745405,1.1862467,3295.6,3294.2,0.13533273]
[1768637745611,0.9163228,3295.5,3294.5,0.98324897]
[1768637745806,0.13960827,3295.8,3294.2,0.13533273]
[1768637746108,0.91628042,3295.7,3294.2,0.13533273]
[1768637746309,0.91628042,3295.6,3294.2,0.13533273]
[1768637746503,0.13960827,3295.8,3294.2,0.13533273]
[1768637746702,0.91596731,3295.7,3294.2,0.13533273]
[1768637746911,0.91596731,3295.6,3294.2,0.13533273]
[1768637747211,0.13960827,3295.8,3294.2,0.13533273]
[1768637747410,0.91582029,3295.7,3294.2,0.13533273]
[1768637747709,0.91582029,3295.6,3294.2,40.93533273]
[1768637747911,0.13960827,3295.8,3294.2,40.93533273]
[1768637748109,0.91582029,3295.7,3294.2,40.93533273]
[1768637748303,0.91582029,3295.6,3294.2,40.93533273]
[1768637748501,0.13960827,3295.8,3294.2,40.93533273]
[1768637748796,0.91571266,3295.7,3294.2,40.93533273]
[1768637749002,0.91571266,3295.6,3294.2,40.93533273]
[1768637749201,0.13960827,3295.8,3294.2,40.93533273]
[1768637749402,0.91571267,3295.7,3294.2,40.93533273]
[1768637749603,0.91571267,3295.6,3294.2,40.93533273]
[1768637749802,0.13960827,3295.8,3294.2,40.93533273]
[1768637750004,0.91562678,3295.7,3294.2,40.93533273]
[1768637750214,0.91562678,3295.6,3294.2,40.93533273]
[1768637750413,0.13960827,3295.8,3294.2,40.93533273]
[1768637750710,0.91555663,3295.7,3294.2,40.93533273]
[1768637750906,0.91555663,3295.6,3294.2,40.93533273]
[1768637751212,0.13960827,3295.8,3294.2,40.93533273]
[1768637751412,0.91550881,3295.7,3294.2,40.93533273]
[1768637751611,0.91550881,3295.6,3294.2,40.93533273]
[1768637751908,0.13960827,3295.8,3294.2,40.93533273]
[1768637752114,0.91549829,3295.7,3294.3,0.13868457]
[1768637752410,0.91549829,3295.6,3294.3,0.13868457]
[1768637752719,0.13960827,3295.8,3294.3,0.13868457]
[1768637752912,0.91768311,3295.7,3294.3,0.13868457]
[1768637753100,0.91768311,3295.6,3294.3,0.13868457]
[1768637753298,0.13960827,3295.8,3294.3,0.13868457]
[1768637753502,0.91764216,3295.7,3294.3,0.13868457]
[1768637753704,0.91764216,3295.6,3294.3,0.13868457]
[1768637753900,0.13960827,3295.8,3294.3,0.13868457]
[1768637754102,0.91764173,3295.7,3294.3,0.13868457]
[1768637754301,0.91764173,3295.6,3294.3,0.13868457]
[1768637754500,0.13960827,3295.8,3294.3,0.13868457]
[1768637754804,0.91760787,3295.7,3294.3,0.13868457]
[1768637755001,0.91760787,3295.6,3294.3,0.13868457]
[1768637755214,0.13960827,3295.8,3294.3,0.13868457]
[1768637755414,0.91758038,3295.7,3294.3,0.13868457]
[1768637755607,0.91758038,3295.6,3294.3,0.13868457]
[1768637755808,0.13960827,3295.8,3294.3,0.13868457]
[1768637756009,0.91758038,3295.7,3294.3,0.13868457]
[1768637756306,0.91758038,3295.6,3294.3,0.13868457]
[1768637756506,0.13960827,3295.8,3294.3,0.13868457]
[1768637756707,0.91753889,3295.7,3294.3,0.13868457]
[1768637757010,0.13318225,3296.2,3294.7,0.98324897]
[1768637757204,1.18711622,3296.1,3294.7,0.98324897]
[1768637757410,0.91750856,3296.0,3294.7,0.98324897]
[1768637757711,0.91750856,3295.9,3294.7,0.98324897]
[1768637757912,0.91750856,3295.8,3294.7,0.98324897]
[1768637758111,0.13318225,3296.2,3294.6,1.12193354]
[1768637758410,1.18695402,3296.1,3294.6,1.12193354]
[1768637758614,0.91738169,3296.0,3294.6,1.12193354]
[1768637758808,0.91738169,3295.9,3294.6,1.12193354]
[1768637759006,0.13318225,3296.2,3294.6,1.12193354]
[1768637759210,0.91729242,3296.1,3294.6,1.12193354]
[1768637759410,0.91729242,3296.0,3294.6,1.12193354]
[1768637759611,0.91729242,3295.9,3294.6,1.12193354]
[1768637759810,0.13318225,3296.2,3294.6,1.12193354]
[1768637760117,0.91721566,3296.1,3294.6,1.12193354]
[1768637760317,0.91721566,3296.0,3294.6,1.12193354]
[1768637760520,0.91721566,3295.9,3294.6,1.12193354]
[1768637760710,0.13318225,3296.2,3294.6,1.12193354]
[1768637760910,1.18675069,3296.1,3294.6,1.12193354]
[1768637761110,0.91721012,3296.0,3294.6,1.12193354]
[1768637761313,0.91721012,3295.9,3294.6,1.12193354]
[1768637761519,0.13318225,3296.2,3294.6,1.12193354]
[1768637761817,1.18666894,3296.1,3294.6,1.12193354]
[1768637762011,0.91715028,3296.0,3294.6,1.12193354]
[1768637762211,0.91715028,3295.9,3294.6,1.12193354]
[1768637762411,0.13318225,3296.2,3294.6,1.12193354]
[1768637762611,1.18662344,3296.1,3294.6,1.12193354]
[1768637762819,0.91710522,3296.0,3294.6,1.12193354]
[1768637763121,0.91710522,3295.9,3294.6,1.12193354]
[1768637763321,0.13318225,3296.2,3294.6,1.12193354]
[1768637763622,0.91707354,3296.1,3294.6,1.12193354]
[1768637763918,0.91707354,3296.0,3294.6,1.12193354]
[1768637764112,0.91707354,3295.9,3294.6,1.12193354]
[1768637764314,0.13318225,3296.2,3294.6,1.12193354]
[1768637764615,0.91705436,3296.1,3294.6,1.12193354]
[1768637764813,0.91705436,3296.0,3294.6,1.12193354]
[1768637765120,0.91705436,3295.9,3294.6,1.12193354]
[1768637765418,0.13318225,3296.2,3294.6,1.12193354]
[1768637765614,0.91704719,3296.1,3294.6,1.12193354]
[1768637765819,0.91704719,3296.0,3294.6,1.12193354]
[1768637766012,0.91704719,3295.9,3294.6,1.12193354]
[1768637766211,0.13318225,3296.2,3294.6,1.12193354]
[1768637766410,0.91705185,3296.1,3294.6,1.12193354]
[1768637766618,0.91705185,3296.0,3294.6,1.12193354]
[1768637766820,0.91705185,3295.9,3294.6,1.12193354]
[1768637767020,0.13318225,3296.2,3294.6,1.12193354]
[1768637767320,0.91705199,3296.1,3294.6,1.12193354]
[1768637767516,0.91705199,3296.0,3294.6,1.12193354]
[1768637767720,0.91705199,3295.9,3294.6,1.12193354]
[1768637767916,0.13318225,3296.2,3294.6,1.12193354]
[1768637768119,0.91706912,3296.1,3294.6,1.12193354]
[1768637768318,0.91706912,3296.0,3294.6,1.12193354]
[1768637768619,0.91706912,3295.9,3294.6,1.12193354]
[1768637768821,0.13318225,3296.2,3294.6,1.12193354]
[1768637769020,0.91709884,3296.1,3294.6,1.12193354]
[1768637769220,0.91709884,3296.0,3294.6,1.12193354]
[1768637769415,0.91709884,3295.9,3294.6,1.12193354]
[1768637769614,0.13318225,3296.2,3294.6,1.12193354]
[1768637769916,0.91713198,3296.1,3294.6,1.12193354]
[1768637770116,0.91713198,3296.0,3294.6,1.12193354]
[1768637770316,0.91713198,3295.9,3294.6,1.12193354]
[1768637770517,0.13318225,3296.2,3294.6,1.12193354]
[1768637770714,1.18668574,3296.1,3294.6,1.12193354]
[1768637770914,0.91717683,3296.0,3294.6,1.12193354]
[1768637771115,0.91717683,3295.9,3294.6,1.12193354]
[1768637771315,0.13318225,3296.2,3294.6,1.12193354]
[1768637771514,1.18677658,3296.1,3294.6,1.12193354]
[1768637771722,0.9172481,3296.0,3294.6,1.12193354]
[1768637771924,0.9172481,3295.9,3294.6,1.12193354]
[1768637772119,0.13318225,3296.2,3294.6,1.12193354]
[1768637772319,1.18678346,3296.1,3294.6,1.12193354]
[1768637772619,0.91725495,3296.0,3294.6,1.12193354]
[1768637772820,0.91725495,3295.9,3294.6,1.12193354]
[1768637773126,0.13318225,3296.2,3294.6,1.12193354]
[1768637773428,1.18690189,3296.1,3294.6,1.12193354]
[1768637773617,0.91734734,3296.0,3294.6,1.12193354]
[1768637773818,0.91734734,3295.9,3294.6,1.12193354]
[1768637774018,0.91734734,3295.8,3294.6,1.12193354]
[1768637774228,0.13318225,3296.1,3294.6,0.13868457]
[1768637774527,1.05075908,3296.0,3294.6,0.13868457]
[1768637774727,0.91757683,3295.9,3294.6,0.13868457]
[1768637779423,0.91757683,3295.9,3294.7,0.98314049]
[1768637811968,0.91757683,3295.9,3294.9,0.98314049]
[1768637815170,0.91757683,3295.8,3294.9,0.98314049]
[1768637815469,0.91757683,3295.7,3294.9,0.98314049]
[1768637815666,1.7,3296.1,3294.9,0.98314049]
[1768637815864,1.18769054,3296.0,3294.9,0.98314049]
[1768637816172,0.91565828,3295.9,3294.9,0.98314049]
[1768637816466,0.91565828,3295.8,3294.9,0.98314049]
[1768637816669,0.91565828,3295.7,3294.9,0.98314049]
[1768637816867,1.7,3296.1,3294.9,0.98314049]
[1768637817068,1.18768748,3296.0,3294.9,0.98314049]
[1768637817268,1.7,3296.1,3294.9,0.98314049]
[1768637817269,0.91565589,3295.9,3294.9,0.98314049]
[1768637817569,0.91565589,3295.8,3294.9,0.98314049]
[1768637817768,0.91565589,3295.7,3294.9,0.98314049]
[1768637818070,1.7,3296.1,3294.9,0.98314049]
[1768637818371,1.18768489,3296.0,3294.9,0.98314049]
[1768637818568,0.91565386,3295.9,3294.9,0.98314049]
[1768637818772,0.91565386,3295.8,3294.9,0.98314049]
[1768637818970,0.91565386,3295.7,3294.9,0.98314049]
[1768637819272,1.7,3296.2,3294.9,0.98314049]
[1768637819470,1.18767967,3296.1,3294.9,0.98314049]
[1768637819659,1.18767967,3296.0,3294.9,0.98314049]
[1768637819860,0.91564993,3295.9,3294.9,0.98314049]
[1768637820063,0.91564993,3295.8,3294.9,0.98314049]
[1768637820362,0.91564993,3295.7,3294.9,0.98314049]
[1768637820564,1.7,3296.2,3294.9,0.98314049]
[1768637820861,1.18767857,3296.1,3294.9,0.98314049]
[1768637821059,1.18767857,3296.0,3294.9,0.98314049]
[1768637821261,0.91564908,3295.9,3294.9,0.98314049]
[1768637821560,0.27202949,3296.0,3294.9,0.98314049]
[1768637821561,0.91564908,3295.8,3294.9,0.98314049]
[1768637821760,0.91564908,3295.7,3294.9,0.98314049]
[1768637821961,1.7,3296.2,3294.9,0.98314049]
[1768637822162,0.91564673,3296.1,3294.9,0.98314049]
[1768637822358,0.91564673,3296.0,3294.9,0.98314049]
[1768637822564,0.91564673,3295.9,3295.1,0.98314049]
[1768637822762,0.71193723,3297.1,3295.3,0.98314049]
[1768637822958,0.9155855,3296.5,3295.5,0.98314049]
[1768637823170,0.9155855,3296.4,3295.5,0.98314049]
[1768637823369,0.9155855,3296.3,3295.5,0.98314049]
[1768637823572,1.7,3296.7,3295.5,0.98314049]
[1768637823573,0.9155855,3296.2,3295.5,0.98314049]
[1768637823872,1.7,3296.8,3295.5,0.98314049]
[1768637824075,0.9149629,3296.5,3295.5,0.98314049]
[1768637824269,1.7,3296.8,3295.5,0.98314049]